[Event "Titled Tuesday Blitz January 18 2022"]
[White "Harshavardhan G B"]
[Black "Wong, Yinn Long"]
[WhiteFideId "25059009"]
[BlackFideId "5707684"]
[WhiteElo "1831"]
[BlackElo "2055"]
[Result "1-0"]
[Round "09"]
[TimeControl "180+1"]
[Date "2022.01.18"]
[WhiteClock "0:00:42"]
[BlackClock "0:00:02"]

1. e4 {[%clk 0:03:00]}  c5 {[%clk 0:03:00]} 2. Nf3 {[%clk 0:03:00]}  g6 {[%clk 0:03:00]} 3. d4 {[%clk 0:02:59]}  cxd4 {[%clk 0:03:01]} 4. Qxd4 {[%clk 0:02:59]}  Nf6 {[%clk 0:03:01]} 5. e5 {[%clk 0:02:59]}  Nc6 {[%clk 0:03:01]} 6. Qa4 {[%clk 0:02:59]}  Nd5 {[%clk 0:03:01]} 7. Qb3 {[%clk 0:03:00]}  Nc7 {[%clk 0:03:01]} 8. Bc4 {[%clk 0:02:59]}  Ne6 {[%clk 0:02:55]} 9. Nc3 {[%clk 0:02:57]}  Na5 {[%clk 0:02:53]} 10. Qa4 {[%clk 0:02:56]}  Nc5 {[%clk 0:02:15]} 11. Qb5 {[%clk 0:02:18]}  b6 {[%clk 0:02:01]} 12. Be2 {[%clk 0:01:56]}  e6 {[%clk 0:01:46]} 13. O-O {[%clk 0:01:52]}  Ba6 {[%clk 0:01:38]} 14. Qb4 {[%clk 0:01:50]}  Bxe2 {[%clk 0:01:33]} 15. Nxe2 {[%clk 0:01:51]}  Ncb3 {[%clk 0:01:32]} 16. Qe4 {[%clk 0:01:43]}  Nxa1 {[%clk 0:01:29]} 17. Bg5 {[%clk 0:01:43]}  Qc8 {[%clk 0:01:20]} 18. Bf6 {[%clk 0:01:40]}  Rg8 {[%clk 0:01:18]} 19. Rxa1 {[%clk 0:01:39]}  Qc6 {[%clk 0:01:16]} 20. Qh4 {[%clk 0:01:35]}  h6 {[%clk 0:01:14]} 21. Ned4 {[%clk 0:01:30]}  Qd5 {[%clk 0:01:15]} 22. b3 {[%clk 0:01:28]}  g5 {[%clk 0:01:03]} 23. Qg4 {[%clk 0:01:24]}  Bg7 {[%clk 0:00:52]} 24. c4 {[%clk 0:01:23]}  Qc5 {[%clk 0:00:48]} 25. Qe4 {[%clk 0:01:19]}  Nc6 {[%clk 0:00:43]} 26. b4 {[%clk 0:01:16]}  Qxc4 {[%clk 0:00:38]} 27. Qh7 {[%clk 0:01:16]}  Kf8 {[%clk 0:00:19]} 28. Nxc6 {[%clk 0:01:10]}  Qxc6 {[%clk 0:00:16]} 29. Rd1 {[%clk 0:01:03]}  Rc8 {[%clk 0:00:13]} 30. h3 {[%clk 0:01:00]}  Qc2 {[%clk 0:00:10]} 31. Rd3 {[%clk 0:00:50]}  Rc3 {[%clk 0:00:04]} 32. Bxg7+ {[%clk 0:00:50]}  Rxg7 {[%clk 0:00:04]} 33. Qh8+ {[%clk 0:00:49]}  Ke7 {[%clk 0:00:04]} 34. Rxc3 {[%clk 0:00:48]}  Qxc3 {[%clk 0:00:03]} 35. Qxg7 {[%clk 0:00:46]}  Qc1+ {[%clk 0:00:03]} 36. Kh2 {[%clk 0:00:46]}  Qf4+ {[%clk 0:00:04]} 37. Kh1 {[%clk 0:00:47]}  Qc1+ {[%clk 0:00:02]} 38. Ng1 {[%clk 0:00:47]}  Qf4 {[%clk 0:00:03]} 39. Qxh6 {[%clk 0:00:47]}  Qxe5 {[%clk 0:00:03]} 40. Nf3 {[%clk 0:00:46]}  Qa1+ {[%clk 0:00:04]} 41. Kh2 {[%clk 0:00:47]}  f6 {[%clk 0:00:04]} 42. Qg7+ {[%clk 0:00:47]}  Kd6 {[%clk 0:00:05]} 43. Qf8+ {[%clk 0:00:46]}  Kc6 {[%clk 0:00:04]} 44. Qa8+ {[%clk 0:00:46]}  Kd6 {[%clk 0:00:03]} 45. Qxa7 {[%clk 0:00:46]}  Kc6 {[%clk 0:00:03]} 46. Qa8+ {[%clk 0:00:45]}  Kc7 {[%clk 0:00:03]} 47. b5 {[%clk 0:00:43]}  Qb2 {[%clk 0:00:04]} 48. Qa7+ {[%clk 0:00:43]}  Kc8 {[%clk 0:00:04]} 49. Qxb6 {[%clk 0:00:43]}  Qxa2 {[%clk 0:00:05]} 50. Qc5+ {[%clk 0:00:42]}  Kd8 {[%clk 0:00:05]} 51. b6 {[%clk 0:00:42]}  g4 {[%clk 0:00:02]} 52. Qf8# {[%clk 0:00:42]} 1-0


[Site "https://www.chess.com"]

[Event "Titled Tuesday Blitz January 18 2022"]
[White "Hasangatin, Ramil"]
[Black "Ljukin, Sergei"]
[WhiteFideId "4122160"]
[BlackFideId "14102200"]
[WhiteElo "2375"]
[BlackElo "2312"]
[Result "1-0"]
[Round "09"]
[TimeControl "180+1"]
[Date "2022.01.18"]
[WhiteClock "0:01:00"]
[BlackClock "0:00:17"]

1. e4 {[%clk 0:03:00]}  e6 {[%clk 0:02:55]} 2. d3 {[%clk 0:03:00]}  d5 {[%clk 0:02:55]} 3. Qe2 {[%clk 0:03:00]}  Be7 {[%clk 0:02:55]} 4. Nf3 {[%clk 0:03:01]}  Nf6 {[%clk 0:02:55]} 5. g3 {[%clk 0:03:01]}  O-O {[%clk 0:02:56]} 6. Bg2 {[%clk 0:03:01]}  c5 {[%clk 0:02:56]} 7. O-O {[%clk 0:03:01]}  Nc6 {[%clk 0:02:57]} 8. e5 {[%clk 0:03:01]}  Nd7 {[%clk 0:02:56]} 9. c4 {[%clk 0:03:02]}  a6 {[%clk 0:02:55]} 10. Re1 {[%clk 0:03:01]}  b5 {[%clk 0:02:54]} 11. b3 {[%clk 0:03:01]}  Bb7 {[%clk 0:02:46]} 12. Bf4 {[%clk 0:02:59]}  dxc4 {[%clk 0:02:38]} 13. dxc4 {[%clk 0:02:58]}  bxc4 {[%clk 0:02:39]} 14. bxc4 {[%clk 0:02:53]}  Qc7 {[%clk 0:02:32]} 15. Nbd2 {[%clk 0:02:40]}  Nd4 {[%clk 0:02:31]} 16. Nxd4 {[%clk 0:02:29]}  cxd4 {[%clk 0:02:30]} 17. Qg4 {[%clk 0:02:25]}  Rfd8 {[%clk 0:02:24]} 18. Ne4 {[%clk 0:02:18]}  Bxe4 {[%clk 0:01:58]} 19. Bxe4 {[%clk 0:02:18]}  Rab8 {[%clk 0:01:58]} 20. Bh6 {[%clk 0:02:09]}  Bf8 {[%clk 0:01:56]} 21. Bg5 {[%clk 0:02:09]}  Rdc8 {[%clk 0:01:53]} 22. Bf6 {[%clk 0:01:49]}  Qxc4 {[%clk 0:01:15]} 23. Rad1 {[%clk 0:01:40]}  Rb2 {[%clk 0:01:08]} 24. Rxd4 {[%clk 0:01:36]}  Qc3 {[%clk 0:00:54]} 25. Re3 {[%clk 0:01:23]}  Qc7 {[%clk 0:00:35]} 26. Bxh7+ {[%clk 0:01:13]}  Kxh7 {[%clk 0:00:31]} 27. Qh5+ {[%clk 0:01:13]}  Kg8 {[%clk 0:00:31]} 28. Rh4 {[%clk 0:01:14]}  Qc1+ {[%clk 0:00:19]} 29. Kg2 {[%clk 0:01:12]}  Rxf2+ {[%clk 0:00:17]} 30. Kxf2 {[%clk 0:01:04]}  Qd2+ {[%clk 0:00:17]} 31. Re2 {[%clk 0:01:00]} 1-0


[Site "https://www.chess.com"]

[Event "Titled Tuesday Blitz January 18 2022"]
[White "Hasman, Cengiz"]
[Black "Krstulovic, Alex"]
[WhiteFideId "413364"]
[BlackFideId "760056"]
[WhiteElo "2020"]
[BlackElo "2193"]
[Result "0-1"]
[Round "09"]
[TimeControl "180+1"]
[Date "2022.01.18"]
[WhiteClock "0:00:01"]
[BlackClock "0:00:23"]

1. d4 {[%clk 0:03:00]}  Nf6 {[%clk 0:02:59]} 2. c4 {[%clk 0:03:01]}  e6 {[%clk 0:02:59]} 3. Bg5 {[%clk 0:03:00]}  c5 {[%clk 0:02:53]} 4. d5 {[%clk 0:03:00]}  b5 {[%clk 0:02:52]} 5. dxe6 {[%clk 0:02:20]}  fxe6 {[%clk 0:02:51]} 6. e4 {[%clk 0:02:13]}  Be7 {[%clk 0:02:28]} 7. e5 {[%clk 0:02:07]}  Ne4 {[%clk 0:02:07]} 8. Bxe7 {[%clk 0:01:32]}  Qa5+ {[%clk 0:02:07]} 9. Nd2 {[%clk 0:01:25]}  Kxe7 {[%clk 0:01:59]} 10. Nf3 {[%clk 0:01:24]}  Rf8 {[%clk 0:01:58]} 11. Bd3 {[%clk 0:01:21]}  Nxd2 {[%clk 0:01:57]} 12. Nxd2 {[%clk 0:01:20]}  bxc4 {[%clk 0:01:53]} 13. Be4 {[%clk 0:01:09]}  Nc6 {[%clk 0:01:50]} 14. Bxc6 {[%clk 0:01:08]}  dxc6 {[%clk 0:01:50]} 15. O-O {[%clk 0:01:07]}  Ba6 {[%clk 0:01:50]} 16. Ne4 {[%clk 0:01:03]}  Rad8 {[%clk 0:01:47]} 17. Qh5 {[%clk 0:01:02]}  c3 {[%clk 0:01:24]} 18. Qg5+ {[%clk 0:00:50]}  Kf7 {[%clk 0:01:24]} 19. bxc3 {[%clk 0:00:23]}  Bxf1 {[%clk 0:01:23]} 20. Rxf1 {[%clk 0:00:23]}  Kg8 {[%clk 0:01:08]} 21. Qg4 {[%clk 0:00:14]}  Qxa2 {[%clk 0:01:03]} 22. Ng5 {[%clk 0:00:13]}  Rde8 {[%clk 0:00:43]} 23. f4 {[%clk 0:00:12]}  h6 {[%clk 0:00:41]} 24. Ne4 {[%clk 0:00:09]}  Re7 {[%clk 0:00:25]} 25. Rd1 {[%clk 0:00:07]}  Qa4 {[%clk 0:00:24]} 26. h4 {[%clk 0:00:01]}  Qxe4 {[%clk 0:00:23]} 0-1


[Site "https://www.chess.com"]

[Event "Titled Tuesday Blitz January 18 2022"]
[White "Jocev, Milan"]
[Black "De Silva, L M S T"]
[WhiteFideId "900680"]
[BlackFideId "9953698"]
[WhiteElo "2322"]
[BlackElo "1631"]
[Result "0-1"]
[Round "09"]
[TimeControl "180+1"]
[Date "2022.01.18"]
[WhiteClock "0:00:01"]
[BlackClock "0:01:03"]

1. d4 {[%clk 0:03:00]}  Nf6 {[%clk 0:02:59]} 2. Bg5 {[%clk 0:02:59]}  e6 {[%clk 0:02:59]} 3. Nd2 {[%clk 0:02:59]}  h6 {[%clk 0:03:00]} 4. Bh4 {[%clk 0:02:59]}  g5 {[%clk 0:03:00]} 5. Bg3 {[%clk 0:02:59]}  Bg7 {[%clk 0:03:01]} 6. e4 {[%clk 0:02:58]}  d6 {[%clk 0:03:01]} 7. h4 {[%clk 0:02:56]}  g4 {[%clk 0:03:00]} 8. h5 {[%clk 0:02:56]}  Nc6 {[%clk 0:02:57]} 9. c3 {[%clk 0:02:48]}  e5 {[%clk 0:02:56]} 10. d5 {[%clk 0:02:37]}  Ne7 {[%clk 0:02:54]} 11. Bh4 {[%clk 0:02:37]}  Nh7 {[%clk 0:02:31]} 12. Be2 {[%clk 0:02:29]}  Qd7 {[%clk 0:02:30]} 13. Bxe7 {[%clk 0:02:24]}  Kxe7 {[%clk 0:02:29]} 14. Nf1 {[%clk 0:02:10]}  Kf8 {[%clk 0:02:21]} 15. Ne3 {[%clk 0:02:08]}  Nf6 {[%clk 0:02:21]} 16. Rh4 {[%clk 0:02:04]}  Nxe4 {[%clk 0:02:18]} 17. Bxg4 {[%clk 0:02:04]}  Qe7 {[%clk 0:02:13]} 18. g3 {[%clk 0:01:35]}  Bf6 {[%clk 0:02:02]} 19. Bxc8 {[%clk 0:01:26]}  Bxh4 {[%clk 0:02:00]} 20. gxh4 {[%clk 0:00:58]}  Qxh4 {[%clk 0:01:54]} 21. Qf3 {[%clk 0:00:24]}  Rxc8 {[%clk 0:01:51]} 22. Nf5 {[%clk 0:00:24]}  Qf4 {[%clk 0:01:47]} 23. Qxf4 {[%clk 0:00:17]}  exf4 {[%clk 0:01:48]} 24. Nh3 {[%clk 0:00:18]}  Re8 {[%clk 0:01:47]} 25. O-O-O {[%clk 0:00:16]}  Re5 {[%clk 0:01:45]} 26. Nd4 {[%clk 0:00:15]}  Rxh5 {[%clk 0:01:42]} 27. Nxf4 {[%clk 0:00:16]}  Rg5 {[%clk 0:01:39]} 28. f3 {[%clk 0:00:14]}  Nf6 {[%clk 0:01:39]} 29. Nb5 {[%clk 0:00:12]}  Rf5 {[%clk 0:01:37]} 30. Ne2 {[%clk 0:00:11]}  c6 {[%clk 0:01:30]} 31. Nxd6 {[%clk 0:00:08]}  Rxd5 {[%clk 0:01:30]} 32. Nxb7 {[%clk 0:00:05]}  Rxd1+ {[%clk 0:01:30]} 33. Kxd1 {[%clk 0:00:06]}  h5 {[%clk 0:01:30]} 34. Ke1 {[%clk 0:00:05]}  h4 {[%clk 0:01:31]} 35. Kf2 {[%clk 0:00:05]}  Rg8 {[%clk 0:01:31]} 36. Nd6 {[%clk 0:00:04]}  h3 {[%clk 0:01:30]} 37. Nf5 {[%clk 0:00:02]}  h2 {[%clk 0:01:29]} 38. Nfg3 {[%clk 0:00:03]}  Nh5 {[%clk 0:01:23]} 39. Nh1 {[%clk 0:00:03]}  f5 {[%clk 0:01:19]} 40. b4 {[%clk 0:00:03]}  f4 {[%clk 0:01:20]} 41. a4 {[%clk 0:00:02]}  Kf7 {[%clk 0:01:09]} 42. b5 {[%clk 0:00:02]}  c5 {[%clk 0:01:09]} 43. a5 {[%clk 0:00:01]}  Ke6 {[%clk 0:01:03]} 0-1


[Site "https://www.chess.com"]

[Event "Titled Tuesday Blitz January 18 2022"]
[White "Kaufman, Raymond"]
[Black "Le, Tuan Minh"]
[WhiteFideId "2015056"]
[BlackFideId "12401153"]
[WhiteElo "2321"]
[BlackElo "2450"]
[Result "0-1"]
[Round "09"]
[TimeControl "180+1"]
[Date "2022.01.18"]
[WhiteClock "0:01:22"]
[BlackClock "0:01:57"]

1. e4 {[%clk 0:03:00]}  c5 {[%clk 0:03:00]} 2. Nf3 {[%clk 0:03:00]}  Nf6 {[%clk 0:02:56]} 3. e5 {[%clk 0:02:51]}  Nd5 {[%clk 0:02:56]} 4. g3 {[%clk 0:02:42]}  g6 {[%clk 0:02:56]} 5. Bg2 {[%clk 0:02:42]}  Bg7 {[%clk 0:02:56]} 6. O-O {[%clk 0:02:41]}  O-O {[%clk 0:02:56]} 7. Re1 {[%clk 0:02:41]}  Nc6 {[%clk 0:02:56]} 8. c3 {[%clk 0:02:28]}  d6 {[%clk 0:02:56]} 9. d4 {[%clk 0:02:27]}  cxd4 {[%clk 0:02:55]} 10. cxd4 {[%clk 0:02:27]}  dxe5 {[%clk 0:02:44]} 11. dxe5 {[%clk 0:02:27]}  Ndb4 {[%clk 0:02:43]} 12. Qe2 {[%clk 0:02:04]}  Qd3 {[%clk 0:02:10]} 13. Nc3 {[%clk 0:01:59]}  Bg4 {[%clk 0:02:09]} 14. h3 {[%clk 0:01:53]}  Bxf3 {[%clk 0:02:07]} 15. Bxf3 {[%clk 0:01:41]}  Qxe2 {[%clk 0:02:03]} 16. Rxe2 {[%clk 0:01:41]}  Nd4 {[%clk 0:02:03]} 17. Bxb7 {[%clk 0:01:27]}  Nxe2+ {[%clk 0:02:02]} 18. Nxe2 {[%clk 0:01:28]}  Rab8 {[%clk 0:02:03]} 19. Be4 {[%clk 0:01:25]}  Bxe5 {[%clk 0:02:03]} 20. Bh6 {[%clk 0:01:23]}  Rfd8 {[%clk 0:02:03]} 21. Rc1 {[%clk 0:01:22]}  Nd3 {[%clk 0:01:57]} 0-1


[Site "https://www.chess.com"]

[Event "Titled Tuesday Blitz January 18 2022"]
[White "Klimciauskas, Domantas"]
[Black "Ambartsumova, Karina"]
[WhiteFideId "12802999"]
[BlackFideId "4166299"]
[WhiteElo "2255"]
[BlackElo "2262"]
[Result "1-0"]
[Round "09"]
[TimeControl "180+1"]
[Date "2022.01.18"]
[WhiteClock "0:00:05"]
[BlackClock "0:00:03"]

1. d4 {[%clk 0:03:00]}  Nf6 {[%clk 0:02:58]} 2. Nf3 {[%clk 0:03:00]}  g6 {[%clk 0:02:58]} 3. g3 {[%clk 0:03:00]}  Bg7 {[%clk 0:02:58]} 4. Bg2 {[%clk 0:03:01]}  O-O {[%clk 0:02:59]} 5. O-O {[%clk 0:03:02]}  d6 {[%clk 0:03:00]} 6. b3 {[%clk 0:03:02]}  c5 {[%clk 0:02:59]} 7. Bb2 {[%clk 0:03:01]}  cxd4 {[%clk 0:02:59]} 8. Nxd4 {[%clk 0:03:01]}  d5 {[%clk 0:02:59]} 9. Nd2 {[%clk 0:02:50]}  Nc6 {[%clk 0:02:54]} 10. Nxc6 {[%clk 0:02:38]}  bxc6 {[%clk 0:02:54]} 11. c4 {[%clk 0:02:37]}  a5 {[%clk 0:02:40]} 12. Qc1 {[%clk 0:02:11]}  Be6 {[%clk 0:02:34]} 13. Rd1 {[%clk 0:02:11]}  a4 {[%clk 0:02:30]} 14. Nf3 {[%clk 0:02:04]}  Qb6 {[%clk 0:02:15]} 15. Bd4 {[%clk 0:01:58]}  Qb7 {[%clk 0:02:09]} 16. Rb1 {[%clk 0:01:47]}  Bf5 {[%clk 0:02:09]} 17. Rb2 {[%clk 0:01:44]}  a3 {[%clk 0:02:08]} 18. Rbd2 {[%clk 0:01:43]}  Ne4 {[%clk 0:02:07]} 19. Bxg7 {[%clk 0:01:42]}  Kxg7 {[%clk 0:02:04]} 20. Rd4 {[%clk 0:01:39]}  Qb6 {[%clk 0:01:39]} 21. Qe3 {[%clk 0:01:22]}  Qc7 {[%clk 0:00:49]} 22. cxd5 {[%clk 0:01:12]}  cxd5 {[%clk 0:00:50]} 23. Rxd5 {[%clk 0:00:49]}  Nc3 {[%clk 0:00:49]} 24. Qd4+ {[%clk 0:00:48]}  f6 {[%clk 0:00:42]} 25. Rc5 {[%clk 0:00:36]}  Nxe2+ {[%clk 0:00:23]} 26. Kf1 {[%clk 0:00:34]}  Nxd4 {[%clk 0:00:20]} 27. Rxc7 {[%clk 0:00:33]}  Nxf3 {[%clk 0:00:12]} 28. Rxe7+ {[%clk 0:00:32]}  Rf7 {[%clk 0:00:11]} 29. Rxf7+ {[%clk 0:00:29]}  Kxf7 {[%clk 0:00:12]} 30. Bxf3 {[%clk 0:00:29]}  Rc8 {[%clk 0:00:13]} 31. Bd5+ {[%clk 0:00:30]}  Kg7 {[%clk 0:00:12]} 32. Bc4 {[%clk 0:00:30]}  Rc7 {[%clk 0:00:10]} 33. f3 {[%clk 0:00:30]}  Bc2 {[%clk 0:00:06]} 34. Rd2 {[%clk 0:00:29]}  Bb1 {[%clk 0:00:06]} 35. Kf2 {[%clk 0:00:29]}  f5 {[%clk 0:00:05]} 36. f4 {[%clk 0:00:29]}  h6 {[%clk 0:00:05]} 37. Ke3 {[%clk 0:00:27]}  Re7+ {[%clk 0:00:05]} 38. Kd4 {[%clk 0:00:27]}  Re4+ {[%clk 0:00:05]} 39. Kc3 {[%clk 0:00:27]}  Re1 {[%clk 0:00:05]} 40. Kb4 {[%clk 0:00:27]}  Rc1 {[%clk 0:00:04]} 41. Kxa3 {[%clk 0:00:27]}  Kf6 {[%clk 0:00:04]} 42. Kb2 {[%clk 0:00:27]}  Rg1 {[%clk 0:00:04]} 43. a4 {[%clk 0:00:26]}  Be4 {[%clk 0:00:04]} 44. a5 {[%clk 0:00:26]}  g5 {[%clk 0:00:04]} 45. a6 {[%clk 0:00:25]}  gxf4 {[%clk 0:00:05]} 46. gxf4 {[%clk 0:00:26]}  Rg7 {[%clk 0:00:05]} 47. Rd6+ {[%clk 0:00:25]}  Ke7 {[%clk 0:00:04]} 48. Rb6 {[%clk 0:00:24]}  Rg2+ {[%clk 0:00:05]} 49. Kc3 {[%clk 0:00:23]}  Kd7 {[%clk 0:00:04]} 50. a7 {[%clk 0:00:20]}  Kc7 {[%clk 0:00:05]} 51. Re6 {[%clk 0:00:18]}  Ra2 {[%clk 0:00:04]} 52. Re7+ {[%clk 0:00:17]}  Kd6 {[%clk 0:00:04]} 53. Rh7 {[%clk 0:00:16]}  Kc5 {[%clk 0:00:04]} 54. b4+ {[%clk 0:00:17]}  Kb6 {[%clk 0:00:03]} 55. Kd4 {[%clk 0:00:16]}  Rxa7 {[%clk 0:00:02]} 56. Rxa7 {[%clk 0:00:15]}  Kxa7 {[%clk 0:00:03]} 57. Bd3 {[%clk 0:00:15]}  Bc6 {[%clk 0:00:01]} 58. Bxf5 {[%clk 0:00:16]}  Kb6 {[%clk 0:00:02]} 59. Be4 {[%clk 0:00:16]}  Be8 {[%clk 0:00:02]} 60. Ke5 {[%clk 0:00:15]}  Kb5 {[%clk 0:00:02]} 61. Kf6 {[%clk 0:00:09]}  Kxb4 {[%clk 0:00:02]} 62. Ke7 {[%clk 0:00:09]}  Bh5 {[%clk 0:00:02]} 63. f5 {[%clk 0:00:08]}  Kc5 {[%clk 0:00:03]} 64. f6 {[%clk 0:00:05]}  Kd4 {[%clk 0:00:03]} 65. Bf3 {[%clk 0:00:05]}  Ke5 {[%clk 0:00:03]} 66. Bxh5 {[%clk 0:00:05]} 1-0


[Site "https://www.chess.com"]

[Event "Titled Tuesday Blitz January 18 2022"]
[White "Kosakowski, Jakub"]
[Black "Sviridov, Valery"]
[WhiteFideId "1185080"]
[BlackFideId "4120680"]
[WhiteElo "2476"]
[BlackElo "2454"]
[Result "0-1"]
[Round "09"]
[TimeControl "180+1"]
[Date "2022.01.18"]
[WhiteClock "0:00:04"]
[BlackClock "0:00:32"]

1. d4 {[%clk 0:03:00]}  g6 {[%clk 0:02:58]} 2. Nf3 {[%clk 0:03:00]}  Bg7 {[%clk 0:02:59]} 3. e4 {[%clk 0:03:00]}  d6 {[%clk 0:02:59]} 4. Bc4 {[%clk 0:03:00]}  e6 {[%clk 0:02:59]} 5. O-O {[%clk 0:03:00]}  b6 {[%clk 0:02:58]} 6. Re1 {[%clk 0:02:59]}  Bb7 {[%clk 0:02:59]} 7. Nbd2 {[%clk 0:03:00]}  Nd7 {[%clk 0:02:59]} 8. Nf1 {[%clk 0:03:00]}  Ne7 {[%clk 0:02:56]} 9. Bb3 {[%clk 0:03:00]}  O-O {[%clk 0:02:56]} 10. c3 {[%clk 0:03:00]}  c5 {[%clk 0:02:54]} 11. Ng3 {[%clk 0:02:59]}  Rc8 {[%clk 0:02:53]} 12. h4 {[%clk 0:02:59]}  h6 {[%clk 0:02:52]} 13. Be3 {[%clk 0:02:31]}  Nf6 {[%clk 0:02:31]} 14. Bf4 {[%clk 0:02:25]}  b5 {[%clk 0:02:20]} 15. a4 {[%clk 0:02:12]}  b4 {[%clk 0:02:20]} 16. dxc5 {[%clk 0:01:43]}  dxc5 {[%clk 0:02:20]} 17. cxb4 {[%clk 0:01:44]}  cxb4 {[%clk 0:02:20]} 18. Bd6 {[%clk 0:01:43]}  a5 {[%clk 0:02:14]} 19. h5 {[%clk 0:01:42]}  g5 {[%clk 0:02:09]} 20. e5 {[%clk 0:01:00]}  Ne8 {[%clk 0:02:09]} 21. Bxe7 {[%clk 0:01:00]}  Qxe7 {[%clk 0:02:10]} 22. Ne4 {[%clk 0:01:01]}  Nc7 {[%clk 0:01:50]} 23. Qd6 {[%clk 0:00:58]}  Qd8 {[%clk 0:01:40]} 24. Rac1 {[%clk 0:00:54]}  Nd5 {[%clk 0:01:37]} 25. Rxc8 {[%clk 0:00:53]}  Qxc8 {[%clk 0:01:33]} 26. Qc5 {[%clk 0:00:17]}  Qxc5 {[%clk 0:01:29]} 27. Nxc5 {[%clk 0:00:18]}  Ba8 {[%clk 0:01:30]} 28. Ne4 {[%clk 0:00:16]}  Nf4 {[%clk 0:01:28]} 29. Kf1 {[%clk 0:00:16]}  Nd3 {[%clk 0:01:27]} 30. Re2 {[%clk 0:00:14]}  Rc8 {[%clk 0:01:13]} 31. Nd6 {[%clk 0:00:09]}  Rc1+ {[%clk 0:01:13]} 32. Ne1 {[%clk 0:00:09]}  Bxe5 {[%clk 0:01:03]} 33. Nc4 {[%clk 0:00:09]}  Bd4 {[%clk 0:01:03]} 34. f3 {[%clk 0:00:04]}  Bf2 {[%clk 0:01:03]} 35. Bc2 {[%clk 0:00:03]}  Rxe1+ {[%clk 0:01:02]} 36. Rxe1 {[%clk 0:00:03]}  Nxe1 {[%clk 0:01:02]} 37. Bb1 {[%clk 0:00:03]}  Bh4 {[%clk 0:00:57]} 38. Nxa5 {[%clk 0:00:03]}  Bd5 {[%clk 0:00:55]} 39. Be4 {[%clk 0:00:02]}  Bxe4 {[%clk 0:00:55]} 40. fxe4 {[%clk 0:00:03]}  Nd3 {[%clk 0:00:55]} 41. Nc4 {[%clk 0:00:04]}  Nc5 {[%clk 0:00:37]} 42. a5 {[%clk 0:00:04]}  g4 {[%clk 0:00:35]} 43. Ne5 {[%clk 0:00:04]}  Bf6 {[%clk 0:00:33]} 44. Nxg4 {[%clk 0:00:04]}  Bxb2 {[%clk 0:00:33]} 45. Nxh6+ {[%clk 0:00:05]}  Kf8 {[%clk 0:00:34]} 46. Ng4 {[%clk 0:00:05]}  b3 {[%clk 0:00:33]} 47. Ke2 {[%clk 0:00:05]}  Bc3 {[%clk 0:00:33]} 48. Kd1 {[%clk 0:00:05]}  Bxa5 {[%clk 0:00:34]} 49. Ne3 {[%clk 0:00:05]}  Bc3 {[%clk 0:00:33]} 50. h6 {[%clk 0:00:05]}  Kg8 {[%clk 0:00:32]} 51. g4 {[%clk 0:00:05]}  Bf6 {[%clk 0:00:32]} 52. Nc4 {[%clk 0:00:04]}  Bg5 {[%clk 0:00:32]} 53. Na5 {[%clk 0:00:04]}  Bxh6 {[%clk 0:00:32]} 0-1


[Site "https://www.chess.com"]

[Event "Titled Tuesday Blitz January 18 2022"]
[White "Kosteniuk, Alexandra"]
[Black "Brunner, Nicolas"]
[WhiteFideId "4128125"]
[BlackFideId "620246"]
[WhiteElo "2469"]
[BlackElo "2372"]
[Result "0-1"]
[Round "09"]
[TimeControl "180+1"]
[Date "2022.01.18"]
[WhiteClock "0:00:07"]
[BlackClock "0:00:04"]

1. c4 {[%clk 0:03:00]}  c5 {[%clk 0:02:59]} 2. Nf3 {[%clk 0:02:59]}  Nc6 {[%clk 0:02:57]} 3. g3 {[%clk 0:03:00]}  e5 {[%clk 0:02:55]} 4. Nc3 {[%clk 0:02:57]}  g6 {[%clk 0:02:55]} 5. Bg2 {[%clk 0:02:55]}  Bg7 {[%clk 0:02:54]} 6. e4 {[%clk 0:02:55]}  Nge7 {[%clk 0:02:54]} 7. d3 {[%clk 0:02:55]}  d6 {[%clk 0:02:54]} 8. h4 {[%clk 0:02:55]}  h6 {[%clk 0:02:53]} 9. Rb1 {[%clk 0:02:54]}  a6 {[%clk 0:02:51]} 10. a3 {[%clk 0:02:54]}  Rb8 {[%clk 0:02:51]} 11. b4 {[%clk 0:02:51]}  cxb4 {[%clk 0:02:51]} 12. axb4 {[%clk 0:02:52]}  b5 {[%clk 0:02:51]} 13. Nd5 {[%clk 0:02:48]}  Bg4 {[%clk 0:02:42]} 14. Be3 {[%clk 0:02:28]}  O-O {[%clk 0:02:23]} 15. Qd2 {[%clk 0:02:24]}  Kh7 {[%clk 0:02:11]} 16. Ng5+ {[%clk 0:01:45]}  hxg5 {[%clk 0:02:04]} 17. hxg5+ {[%clk 0:01:45]}  Kg8 {[%clk 0:02:03]} 18. Nf6+ {[%clk 0:01:45]}  Bxf6 {[%clk 0:01:59]} 19. gxf6 {[%clk 0:01:46]}  Nc8 {[%clk 0:01:32]} 20. Bg5 {[%clk 0:01:43]}  Re8 {[%clk 0:01:25]} 21. f3 {[%clk 0:01:40]}  Bd7 {[%clk 0:01:01]} 22. Bh4 {[%clk 0:01:24]}  Re6 {[%clk 0:00:51]} 23. Bh3 {[%clk 0:01:05]}  Nd4 {[%clk 0:00:49]} 24. Kf2 {[%clk 0:00:48]}  Rxf6 {[%clk 0:00:39]} 25. Bxf6 {[%clk 0:00:35]}  Qxf6 {[%clk 0:00:38]} 26. f4 {[%clk 0:00:31]}  Nb6 {[%clk 0:00:29]} 27. c5 {[%clk 0:00:26]}  dxc5 {[%clk 0:00:25]} 28. bxc5 {[%clk 0:00:27]}  Bxh3 {[%clk 0:00:24]} 29. Rxh3 {[%clk 0:00:28]}  Nd7 {[%clk 0:00:20]} 30. Rbh1 {[%clk 0:00:28]}  Ne6 {[%clk 0:00:15]} 31. c6 {[%clk 0:00:22]}  Ndf8 {[%clk 0:00:14]} 32. Kg2 {[%clk 0:00:16]}  exf4 {[%clk 0:00:13]} 33. Rf1 {[%clk 0:00:16]}  f3+ {[%clk 0:00:12]} 34. Rxf3 {[%clk 0:00:15]}  Qg5 {[%clk 0:00:12]} 35. Rf2 {[%clk 0:00:14]}  Qxd2 {[%clk 0:00:10]} 36. Rxd2 {[%clk 0:00:15]}  b4 {[%clk 0:00:11]} 37. d4 {[%clk 0:00:15]}  b3 {[%clk 0:00:11]} 38. Rh1 {[%clk 0:00:15]}  a5 {[%clk 0:00:09]} 39. d5 {[%clk 0:00:15]}  Nc5 {[%clk 0:00:09]} 40. c7 {[%clk 0:00:14]}  Rc8 {[%clk 0:00:08]} 41. d6 {[%clk 0:00:14]}  Nfd7 {[%clk 0:00:09]} 42. Re1 {[%clk 0:00:13]}  a4 {[%clk 0:00:08]} 43. e5 {[%clk 0:00:10]}  a3 {[%clk 0:00:08]} 44. Ree2 {[%clk 0:00:07]}  a2 {[%clk 0:00:08]} 45. Re1 {[%clk 0:00:08]}  Kg7 {[%clk 0:00:06]} 46. Rb2 {[%clk 0:00:07]}  Nb6 {[%clk 0:00:06]} 47. Rc1 {[%clk 0:00:07]}  Nba4 {[%clk 0:00:06]} 48. Re2 {[%clk 0:00:05]}  b2 {[%clk 0:00:03]} 49. Rxb2 {[%clk 0:00:05]}  Nxb2 {[%clk 0:00:04]} 50. Ra1 {[%clk 0:00:06]}  Nbd3 {[%clk 0:00:03]} 51. Rxa2 {[%clk 0:00:06]}  Nxe5 {[%clk 0:00:03]} 52. Ra5 {[%clk 0:00:07]}  Ncd7 {[%clk 0:00:03]} 53. Rb5 {[%clk 0:00:07]}  Kf6 {[%clk 0:00:03]} 54. Kf2 {[%clk 0:00:08]}  Ke6 {[%clk 0:00:04]} 55. Ke3 {[%clk 0:00:06]}  Kxd6 {[%clk 0:00:04]} 56. Kf4 {[%clk 0:00:07]}  Rxc7 {[%clk 0:00:04]} 0-1


[Site "https://www.chess.com"]